bitfinex/quotes_BTCUSD_20241119
["timestamp","ask_amount","ask_price","bid_price","bid_amount"]
[1731977933608,0.109746,91119.0,91118.0,0.16567368]
[1731977933808,0.19579735,91119.0,91118.0,0.16567368]
[1731977934060,0.05326571,91119.0,91118.0,0.0511]
[1731977934495,0.219485,91123.0,91118.0,0.0511]
[1731977934708,0.109744,91121.0,91120.0,0.0012]
[1731977934922,0.16301893,91121.0,91120.0,0.0012]
[1731977935391,0.05327493,91121.0,91120.0,0.0012]
[1731977935633,0.07376515,91121.0,91120.0,0.00161498]
[1731977936065,0.07376515,91121.0,91120.0,0.08381498]
[1731977936547,0.07376515,91121.0,91120.0,0.19355998]
[1731977936774,0.07376515,91121.0,91120.0,0.31262253]
[1731977937005,0.07376515,91121.0,91120.0,0.36252253]
[1731977937227,0.04098095,91121.0,91120.0,0.36252253]
[1731977937434,0.02049083,91121.0,91120.0,0.36252253]
[1731977938121,0.02049083,91121.0,91120.0,0.37494709]
[1731977938348,0.01249083,91121.0,91120.0,0.37494709]
[1731977939241,0.01249083,91121.0,91106.0,0.002]
[1731977939242,0.109768,91101.0,91089.0,0.0455]
[1731977939479,0.109768,91101.0,91093.0,0.16447368]
[1731977939691,0.109768,91101.0,91100.0,0.00212558]
[1731977939919,0.109768,91101.0,91100.0,0.00332558]
[1731977940343,0.109768,91101.0,91100.0,0.0017106]
[1731977943174,0.109768,91101.0,91072.0,0.0029106]
[1731977943175,0.119782,91089.0,91072.0,0.0029106]
[1731977943389,0.36142957,91089.0,91072.0,0.0017106]
[1731977943594,0.36142957,91089.0,91072.0,0.0029106]
[1731977944497,0.36142957,91089.0,91072.0,0.0017106]
[1731977944716,0.36142957,91089.0,91072.0,0.0029106]
[1731977946265,0.45440867,91089.0,91088.0,0.0017094]
[1731977949047,0.45520867,91089.0,91088.0,0.0017094]
[1731977949256,0.56427122,91089.0,91088.0,0.0017094]
[1731977949465,0.59692792,91089.0,91088.0,0.0017094]
[1731977949675,0.48786537,91089.0,91088.0,0.0017094]
[1731977950359,0.5082715,91089.0,91088.0,0.0017094]
[1731977950578,0.5074715,91089.0,91088.0,0.0017094]
[1731977951457,0.4748148,91089.0,91088.0,0.0017094]
[1731977952098,0.4648148,91089.0,91088.0,0.0017094]
[1731977952304,0.3718357,91089.0,91088.0,0.0017094]
[1731977952512,0.33925068,91089.0,91088.0,0.0017094]
[1731977952713,0.209782,91089.0,91088.0,0.0017094]
[1731977952954,0.109782,91089.0,91088.0,0.0017094]
[1731977953181,0.02040613,91092.0,91088.0,0.0029094]
[1731977953430,0.00958502,91105.0,91088.0,0.0029094]
[1731977953431,0.02040935,91091.0,91090.0,0.110981]
[1731977954129,0.02040935,91091.0,91090.0,0.109781]
[1731977954327,0.05306424,91091.0,91090.0,0.109781]
[1731977954541,0.02040935,91091.0,91090.0,0.109781]
[1731977954766,0.16447368,91097.0,91088.0,0.2212754]
[1731977955006,0.05308103,91096.0,91090.0,0.10978]
[1731977955237,0.05308103,91095.0,91090.0,0.10978]
[1731977955466,0.05308103,91094.0,91092.0,0.109778]
[1731977955708,0.05308103,91093.0,91092.0,0.109778]
[1731977955939,0.02041578,91093.0,91092.0,0.109778]
[1731977956374,0.02041578,91098.0,91092.0,0.109778]
[1731977956632,0.219529,91104.0,91099.0,0.0012]
[1731977957088,0.02042534,91104.0,91093.0,0.109777]
[1731977957570,0.219534,91102.0,91093.0,0.109776]
[1731977957779,0.10977,91100.0,91093.0,0.109776]
[1731977957980,0.02042534,91099.0,91098.0,0.0012]
[1731977958643,0.13020241,91099.0,91098.0,0.0012]
[1731977958877,0.02043241,91099.0,91098.0,0.0012]
[1731977959979,0.16447368,91107.0,91098.0,0.0012]
[1731977959980,0.02043241,91105.0,91104.0,0.0012]
[1731977960218,0.16447368,91108.0,91107.0,0.109761]
[1731977960659,0.02043241,91113.0,91112.0,0.109755]
[1731977960868,0.02043241,91113.0,91105.0,0.220725]
[1731977961082,0.02043241,91112.0,91111.0,0.109755]
[1731977961298,0.209747,91118.0,91108.0,0.00041498]
[1731977961299,0.02043241,91117.0,91108.0,0.00041498]
[1731977961506,0.0008551,91121.0,91106.0,0.301224]
[1731977961507,0.0008551,91121.0,91120.0,0.109745]
[1731977961719,0.0008551,91121.0,91120.0,0.110945]
[1731977961936,0.13103018,91121.0,91120.0,0.0012]
[1731977962620,0.109749,91117.0,91115.0,0.0012]
[1731977962875,0.13018108,91116.0,91115.0,0.0012]
[1731977963569,0.109753,91113.0,91112.0,0.00161498]
[1731977963826,0.109755,91112.0,91111.0,0.0012]
[1731977964059,0.13018608,91112.0,91111.0,0.0012]
[1731977964727,0.02043108,91112.0,91099.0,0.0012]
[1731977964968,0.109775,91095.0,91094.0,0.00041498]
[1731977965188,0.109775,91095.0,91092.0,0.0012]
[1731977965189,0.109777,91093.0,91092.0,0.00161498]
[1731977965610,0.13021338,91093.0,91092.0,0.00161498]
[1731977965830,0.13021338,91093.0,91092.0,0.0012]
[1731977965831,0.02043638,91093.0,91092.0,0.0012]
[1731977966365,0.00958502,91112.0,91092.0,0.0012]
[1731977966366,0.0008551,91121.0,91113.0,0.109753]
[1731977966579,0.0008551,91121.0,91113.0,0.110953]
[1731977967005,0.0008551,91121.0,91120.0,0.109745]
[1731977967227,0.0540037,91121.0,91120.0,0.109745]
[1731977967443,0.0540037,91121.0,91120.0,0.0012]
[1731977967656,0.0540037,91121.0,91120.0,0.110945]
[1731977967871,0.02044177,91121.0,91120.0,0.110945]
[1731977968962,0.02044177,91121.0,91120.0,0.0012]
[1731977969629,0.02044177,91121.0,91117.0,0.105948]
[1731977969839,0.02044177,91120.0,91118.0,0.109747]
[1731977970064,0.02044177,91119.0,91114.0,0.109751]
[1731977970315,0.219476,91127.0,91116.0,0.109749]
[1731977970316,0.02044177,91118.0,91116.0,0.109749]
[1731977970558,0.109741,91123.0,91115.0,0.109751]
[1731977970559,0.02044177,91117.0,91115.0,0.109751]
[1731977970789,0.02044177,91116.0,91113.0,0.109753]
[1731977970999,0.02044177,91115.0,91114.0,0.109752]
[1731977971425,0.02044177,91115.0,91112.0,0.00041498]
[1731977971426,0.109753,91113.0,91112.0,0.00041498]
[1731977971686,0.02044177,91113.0,91112.0,0.00041498]
[1731977973875,0.02044177,91113.0,91110.0,0.00041498]
[1731977974109,0.02044177,91113.0,91102.0,0.0475]
[1731977974110,0.13019677,91112.0,91111.0,0.00041498]
[1731977974533,0.13019677,91112.0,91100.0,0.00041498]
[1731977974534,0.02044177,91112.0,91100.0,0.00041498]
[1731977974742,0.0017108,91114.0,91091.0,0.0459]
[1731977974743,0.12950432,91111.0,91093.0,0.16447368]
[1731977974958,0.21955,91096.0,91093.0,0.00041498]
[1731977975170,0.21955,91096.0,91084.0,0.077]
[1731977975171,0.219553,91094.0,91088.0,0.00212438]
[1731977975380,0.219553,91094.0,91088.0,0.0017094]
[1731977975381,0.10978,91091.0,91088.0,0.0017094]
[1731977975649,0.13022177,91091.0,91088.0,0.0017094]
[1731977976568,0.02044177,91091.0,91088.0,0.0017094]
[1731977978046,0.05317785,91091.0,91088.0,0.0017094]
[1731977978899,0.16295785,91091.0,91088.0,0.0017094]
[1731977979375,0.109781,91090.0,91082.0,0.10979]
[1731977979580,0.05317785,91089.0,91081.0,0.04387978]
[1731977979787,0.21957,91087.0,91081.0,0.04387978]
[1731977979992,0.109788,91085.0,91081.0,0.04387978]
[1731977980193,0.13023077,91084.0,91081.0,0.04387978]
[1731977980422,0.16296785,91083.0,91075.0,0.186798]
[1731977980636,0.05317785,91082.0,91072.0,0.0017106]
[1731977980841,0.16447368,91096.0,91072.0,0.0017106]
[1731977980842,0.219589,91080.0,91072.0,0.0017106]
[1731977981042,0.05317785,91079.0,91072.0,0.0017106]
[1731977981331,0.219589,91080.0,91072.0,0.0017106]
[1731977981332,0.109799,91076.0,91072.0,0.0017106]
[1731977981549,0.109802,91073.0,91072.0,0.0017106]
[1731977981768,0.16297985,91073.0,91072.0,0.0017106]
[1731977982203,0.05317785,91073.0,91072.0,0.0017106]
[1731977982651,0.05317785,91073.0,91072.0,0.1115136]
[1731977982871,0.05317785,91073.0,91072.0,0.0017106]
[1731977983080,0.05317785,91073.0,91072.0,0.1115136]
[1731977983731,0.02044177,91073.0,91072.0,0.1115136]
[1731977985497,0.02044177,91073.0,91072.0,0.0017106]
[1731977985723,0.13024377,91073.0,91072.0,0.0017106]
[1731977985937,0.16297985,91073.0,91072.0,0.0017106]
[1731977986582,0.05317785,91073.0,91072.0,0.0017106]
[1731977987044,0.16297985,91073.0,91072.0,0.0017106]
[1731977987252,0.15868985,91073.0,91072.0,0.0017106]
[1731977988531,0.04888785,91073.0,91072.0,0.1115136]
[1731977988735,0.01615177,91073.0,91072.0,0.1115136]
[1731977990541,0.03275295,91080.0,91072.0,0.0017106]
[1731977991007,0.03275295,91085.0,91084.0,0.109788]
[1731977991229,0.16447368,91085.0,91084.0,0.109788]
[1731977991436,0.03275295,91092.0,91088.0,0.109783]
[1731977991648,0.03275295,91091.0,91088.0,0.109783]
[1731977991881,0.219544,91098.0,91076.0,0.0496]
[1731977991882,0.03275248,91099.0,91094.0,0.109775]
[1731977992108,0.109768,91102.0,91079.0,0.01]
[1731977992109,0.16447368,91095.0,91091.0,0.109779]
[1731977992318,0.109772,91098.0,91079.0,0.01219555]
[1731977992319,0.03275213,91098.0,91093.0,0.109777]
[1731977992532,0.03275213,91099.0,91094.0,0.109776]
[1731977992736,0.1,91104.0,91079.0,0.01119239]
[1731977992737,0.03275746,91098.0,91097.0,0.109773]
[1731977992944,0.03275746,91101.0,91086.0,0.13501377]
[1731977993193,0.02229825,91111.0,91097.0,0.219546]
[1731977993194,0.16447368,91105.0,91097.0,0.219546]
[1731977993451,0.02229825,91111.0,91095.0,0.219551]
[1731977993452,0.03275746,91107.0,91095.0,0.219551]
[1731977993670,0.16447368,91109.0,91108.0,0.109759]
[1731977993898,0.0017108,91114.0,91093.0,0.0478]
[1731977993899,0.03275746,91113.0,91110.0,0.109757]
[1731977994143,0.03275746,91112.0,91093.0,0.0478]
[1731977994356,0.10976,91108.0,91098.0,0.16447368]
[1731977994561,0.10976,91108.0,91102.0,0.109766]
[1731977994790,0.0017108,91114.0,91107.0,0.10976]
[1731977994791,0.03275746,91109.0,91107.0,0.10976]
[1731977994997,0.0017108,91114.0,91108.0,0.109759]
[1731977994998,0.03275746,91113.0,91108.0,0.109759]
[1731977995234,0.0017108,91114.0,91104.0,0.219527]
[1731977995235,0.03275746,91112.0,91109.0,0.109758]
[1731977995463,0.03275746,91113.0,91109.0,0.109758]
[1731977995704,0.0017108,91114.0,91109.0,0.109758]
[1731977996110,0.0017108,91114.0,91099.0,0.219541]
[1731977996345,0.0017108,91114.0,91112.0,0.109753]
[1731977996590,0.0017108,91114.0,91107.0,0.10976]
[1731977996817,0.0017108,91114.0,91098.0,0.01]
[1731977996818,0.109758,91110.0,91098.0,0.01]
[1731977997062,0.109755,91112.0,91099.0,0.16447368]
[1731977997276,0.0017108,91114.0,91098.0,0.01]
[1731977997530,0.1114638,91114.0,91106.0,0.109761]
[1731977997750,0.109755,91112.0,91105.0,0.109762]
[1731977997963,0.109758,91109.0,91099.0,0.219539]
[1731977998174,0.109758,91109.0,91103.0,0.109765]
[1731977998419,0.109758,91109.0,91099.0,0.219539]
[1731977998420,0.109756,91111.0,91099.0,0.219539]
[1731977998648,0.0017108,91114.0,91105.0,0.109762]
[1731977998649,0.109754,91113.0,91105.0,0.109762]
[1731977999080,0.109755,91112.0,91105.0,0.109762]
[1731977999536,0.02047314,91111.0,91105.0,0.109762]
[1731977999770,0.02047314,91110.0,91105.0,0.109762]
[1731977999984,0.02047314,91109.0,91105.0,0.109762]
[1731978000455,0.0017108,91114.0,91098.0,0.01]
[1731978000456,0.02047314,91108.0,91098.0,0.01]
[1731978000673,0.02047314,91108.0,91099.0,0.00115968]
[1731978000920,0.0017108,91114.0,91099.0,0.00115968]
[1731978000921,0.02047314,91107.0,91100.0,0.219538]
[1731978001153,0.2212178,91114.0,91098.0,0.01]
[1731978001154,0.02047314,91106.0,91098.0,0.01]
[1731978001387,0.02047314,91106.0,91088.0,0.38403968]
[1731978001388,0.02047314,91105.0,91088.0,0.01]
[1731978001628,0.10977,91099.0,91092.0,0.109778]
[1731978001859,0.02047314,91098.0,91089.0,0.16447368]
[1731978002082,0.02047314,91097.0,91089.0,0.16447368]
[1731978002290,0.16447368,91106.0,91084.0,0.01]
[1731978002291,0.02047314,91096.0,91084.0,0.01]
[1731978002505,0.02047314,91095.0,91087.0,0.109784]
[1731978002732,0.02047314,91094.0,91089.0,0.109781]
[1731978002948,0.21954,91100.0,91085.0,0.219575]
[1731978002949,0.02047314,91093.0,91085.0,0.219575]
[1731978003155,0.02047314,91092.0,91085.0,0.219575]
[1731978003372,0.219536,91101.0,91085.0,0.219575]
[1731978003373,0.02047314,91091.0,91085.0,0.219575]
[1731978003588,0.02047314,91090.0,91088.0,0.219567]
[1731978003821,0.03275703,91096.0,91086.0,0.109786]
[1731978003822,0.02047314,91089.0,91086.0,0.219572]
[1731978004058,0.03275703,91095.0,91088.0,0.109783]
[1731978004292,0.02049507,91094.0,91086.0,0.219572]
[1731978004505,0.16447368,91096.0,91084.0,0.01]
[1731978004506,0.02049507,91093.0,91087.0,0.21957]
[1731978004783,0.03275703,91095.0,91093.0,0.109777]
[1731978005044,0.03279698,91107.0,91093.0,0.109777]
[1731978005045,0.05325515,91094.0,91093.0,0.119777]
[1731978005261,0.03275703,91106.0,91104.0,0.109764]
[1731978005500,0.03275703,91113.0,91108.0,0.01]
[1731978005730,0.0204924,91112.0,91110.0,0.219513]
[1731978005961,0.0017108,91114.0,91113.0,0.109753]
[1731978006219,0.05499031,91114.0,91110.0,0.219513]
[1731978006431,0.05499031,91114.0,91101.0,0.01]
[1731978006432,0.05327951,91113.0,91101.0,0.01]
[1731978006642,0.03278739,91112.0,91106.0,0.109762]
[1731978006847,0.05327951,91111.0,91108.0,0.109758]
[1731978007082,0.05327951,91110.0,91108.0,0.109758]
[1731978007323,0.05327951,91109.0,91108.0,0.109758]
[1731978007572,0.02049212,91109.0,91108.0,0.109759]
[1731978008497,0.02049212,91109.0,91108.0,0.119759]
[1731978008773,0.02049212,91109.0,91108.0,0.28021653]
[1731978009008,0.0017108,91114.0,91108.0,0.28021653]
[1731978009009,0.0017108,91114.0,91113.0,0.119753]
[1731978009236,0.02219081,91114.0,91113.0,0.23101024]
[1731978009460,0.02219081,91114.0,91113.0,0.22881555]
[1731978009980,0.02218518,91114.0,91113.0,0.22881555]
[1731978010221,0.0017108,91114.0,91113.0,0.22881555]
[1731978010654,0.02217857,91114.0,91113.0,0.22881555]
[1731978010878,0.0017108,91114.0,91113.0,0.22881555]
[1731978012011,0.0017108,91114.0,91113.0,0.23881555]
[1731978012455,0.0017108,91114.0,91113.0,0.28771555]
[1731978012875,0.015878,91127.0,91126.0,0.119738]
[1731978013094,0.16447368,91128.0,91127.0,0.119736]
[1731978013304,0.0823,91157.0,91137.0,0.109724]
[1731978013305,0.03273098,91138.0,91137.0,0.109724]
[1731978013514,0.19720466,91139.0,91138.0,0.109723]
[1731978013726,0.03273098,91143.0,91135.0,0.219454]
[1731978013965,0.03273098,91142.0,91139.0,0.109722]
[1731978014179,0.03358588,91140.0,91139.0,0.109722]
[1731978014441,0.03358588,91140.0,91131.0,0.219464]
[1731978014442,0.22494843,91140.0,91111.0,0.17447368]
[1731978014650,0.22494843,91140.0,91112.0,0.00219481]
[1731978014651,0.109749,91117.0,91112.0,0.00219481]
[1731978014890,0.12501377,91136.0,91111.0,0.27422868]
[1731978015111,0.16447368,91126.0,91108.0,0.219518]
[1731978015355,0.109745,91120.0,91111.0,0.16447368]
[1731978015576,0.16447368,91128.0,91111.0,0.27422868]
[1731978015796,0.219476,91126.0,91106.0,0.01]
[1731978016006,0.109746,91120.0,91108.0,0.109759]
[1731978016213,0.16447368,91128.0,91106.0,0.01]
[1731978016458,0.109745,91121.0,91110.0,0.109756]
[1731978016664,0.16447368,91128.0,91107.0,0.32928]
[1731978016898,0.109748,91118.0,91107.0,0.10976]
[1731978017111,0.219476,91126.0,91108.0,0.109759]
[1731978017318,0.109744,91121.0,91110.0,0.109756]
[1731978017581,0.109744,91121.0,91106.0,0.01]
[1731978017799,0.109744,91121.0,91109.0,0.109758]
[1731978018223,0.03273098,91122.0,91106.0,0.01]
[1731978018441,0.14247498,91121.0,91107.0,0.219522]
[1731978018663,0.03273098,91120.0,91110.0,0.109757]
[1731978018884,0.03273098,91119.0,91107.0,0.219522]
[1731978019097,0.03273098,91118.0,91108.0,0.109759]
[1731978019312,0.219483,91123.0,91106.0,0.01]
[1731978019313,0.03273098,91117.0,91106.0,0.01]
[1731978019527,0.03273098,91116.0,91106.0,0.01]
[1731978019729,0.03273098,91115.0,91111.0,0.109755]
[1731978019938,0.03273098,91114.0,91111.0,0.109755]
[1731978020411,0.03273098,91113.0,91111.0,0.109755]
[1731978020628,0.219478,91125.0,91111.0,0.109755]
[1731978020840,0.03444218,91127.0,91108.0,0.00209338]
[1731978020841,0.03278274,91124.0,91115.0,0.01]
[1731978021052,0.0017112,91127.0,91122.0,0.01]
[1731978021261,0.0017112,91127.0,91126.0,0.109738]
[1731978021475,0.03449491,91127.0,91126.0,0.11193251]
[1731978021703,0.03449491,91127.0,91126.0,0.109738]
[1731978023492,0.0345011,91127.0,91126.0,0.109738]
[1731978023739,0.0345011,91127.0,91126.0,0.22880055]
[1731978023960,0.0017112,91127.0,91126.0,0.22880055]
[1731978024275,0.03450009,91127.0,91126.0,0.22880055]
[1731978024926,0.05499127,91127.0,91126.0,0.22880055]
[1731978025362,0.02220238,91127.0,91126.0,0.22880055]
[1731978025587,0.05498361,91127.0,91126.0,0.22880055]
[1731978025797,0.05498395,91127.0,91126.0,0.22880055]
[1731978026008,0.02220238,91127.0,91126.0,0.22880055]
[1731978027943,0.01420238,91127.0,91126.0,0.22880055]
[1731978029685,0.0008549,91140.0,91139.0,0.109722]
[1731978029925,0.03362055,91140.0,91139.0,0.109722]
[1731978030367,0.03362085,91140.0,91139.0,0.109722]
[1731978030750,0.03362085,91140.0,91136.0,0.109725]
[1731978030943,0.03276595,91139.0,91138.0,0.109723]
[1731978031799,0.03276595,91139.0,91129.0,0.219468]
[1731978031800,0.03276595,91139.0,91127.0,0.01]
[1731978032010,0.0008549,91140.0,91116.0,0.01241413]
[1731978032011,0.0795,91137.0,91116.0,0.01241413]
[1731978032209,0.0795,91137.0,91123.0,0.16447368]
[1731978032210,0.0017088,91127.0,91123.0,0.16447368]
[1731978032461,0.0017088,91127.0,91123.0,0.27421468]
[1731978032660,0.0017088,91127.0,91122.0,0.109742]
[1731978032866,0.03277277,91126.0,91123.0,0.109741]
[1731978033043,0.0017088,91127.0,91123.0,0.109741]
[1731978033488,0.0017088,91127.0,91122.0,0.109742]
[1731978033718,0.109743,91122.0,91117.0,0.109748]
[1731978033944,0.25225986,91126.0,91115.0,0.219502]
[1731978034165,0.03278519,91125.0,91121.0,0.109743]
[1731978034360,0.0017088,91127.0,91117.0,0.219498]
[1731978034568,0.03280075,91126.0,91121.0,0.109743]
[1731978034721,0.0017088,91127.0,91121.0,0.109743]
[1731978034722,0.03280075,91125.0,91121.0,0.109743]
[1731978034942,0.03280099,91124.0,91121.0,0.109743]
[1731978035157,0.03280099,91123.0,91117.0,0.219498]
[1731978035316,0.03280099,91123.0,91113.0,0.01]
[1731978035317,0.03280099,91122.0,91113.0,0.01]
[1731978035527,0.2211848,91127.0,91111.0,0.16447368]
[1731978035528,0.03280099,91121.0,91111.0,0.16447368]
[1731978035799,0.03280099,91120.0,91110.0,0.0008544]
[1731978035971,0.16447368,91125.0,91110.0,0.1106114]
[1731978035972,0.10975,91116.0,91110.0,0.1106114]
[1731978036291,0.16447368,91125.0,91114.0,0.109752]
[1731978036501,0.03281927,91124.0,91113.0,0.219507]
[1731978036954,0.03281927,91123.0,91117.0,0.109748]
[1731978037209,0.03281927,91123.0,91110.0,0.0008544]
[1731978037210,0.109744,91121.0,91112.0,0.21951]
[1731978037357,0.03281927,91120.0,91115.0,0.219501]
[1731978037558,0.03281927,91120.0,91110.0,0.0008544]
[1731978037559,0.03281927,91119.0,91113.0,0.219507]
[1731978037772,0.01371948,91118.0,91115.0,0.10975]
[1731978037988,0.03281927,91119.0,91115.0,0.10975]
[1731978038233,0.03281927,91119.0,91118.0,0.109747]
[1731978038417,0.219463,91132.0,91110.0,0.0008544]
[1731978038418,0.03276595,91126.0,91112.0,0.01]
[1731978038599,0.219463,91132.0,91118.0,0.109747]
[1731978038600,0.06560488,91119.0,91118.0,0.109747]
[1731978038800,0.03283893,91119.0,91118.0,0.109747]
[1731978039006,0.03174163,91119.0,91118.0,0.109747]
[1731978039943,0.05226857,91119.0,91118.0,0.109747]
[1731978040600,0.05226857,91119.0,91118.0,0.219495]
[1731978040601,0.02052615,91119.0,91118.0,0.219495]
[1731978040776,0.02052615,91119.0,91118.0,0.329242]
[1731978042330,0.02052615,91119.0,91118.0,0.43830455]
[1731978042544,0.02052615,91119.0,91118.0,0.45030455]
[1731978042794,0.02052615,91119.0,91118.0,0.48330455]
[1731978043009,0.16447368,91135.0,91126.0,0.01]
[1731978043218,0.16447368,91135.0,91126.0,0.109738]
[1731978044332,0.10973,91132.0,91126.0,0.109738]
[1731978044543,0.109733,91130.0,91126.0,0.0008544]
[1731978044767,0.109734,91129.0,91126.0,0.0008544]
[1731978044980,0.219459,91134.0,91126.0,0.0008544]
[1731978045398,0.109736,91128.0,91126.0,0.0008544]
[1731978045634,0.109732,91131.0,91126.0,0.0008544]
[1731978046144,0.0017088,91136.0,91126.0,0.1105924]
[1731978046366,0.0017088,91136.0,91126.0,0.22965495]
[1731978047056,0.0017088,91136.0,91126.0,0.30835495]
[1731978049114,0.0017088,91136.0,91126.0,0.44135495]
[1731978049342,0.0017088,91136.0,91126.0,0.44335495]
[1731978049574,0.0017088,91136.0,91126.0,0.54042878]
[1731978049811,0.0017088,91136.0,91126.0,0.44335495]
[1731978050289,0.0017088,91136.0,91135.0,0.022]
[1731978050544,0.0017088,91136.0,91135.0,0.61030332]
[1731978051282,0.0017102,91165.0,91143.0,0.022]
[1731978051515,0.0017102,91165.0,91149.0,0.42862377]
[1731978051754,0.0017102,91165.0,91149.0,0.61408632]
[1731978051992,0.16118388,91169.0,91166.0,0.01]
[1731978052219,0.16118388,91169.0,91168.0,0.119687]
[1731978052474,0.16447368,91179.0,91178.0,0.109675]
[1731978052930,0.0008551,91181.0,91179.0,0.109673]
[1731978053417,0.0008551,91181.0,91180.0,0.109673]
[1731978056421,0.0008551,91181.0,91180.0,0.22873555]
[1731978057764,0.0008551,91181.0,91180.0,0.21873555]
[1731978058256,0.0008551,91181.0,91180.0,0.22873555]
[1731978058488,0.02132101,91181.0,91180.0,0.22873555]
[1731978062498,0.0008551,91181.0,91180.0,0.22873555]
[1731978062978,0.0008551,91181.0,91180.0,0.26373555]
[1731978063191,0.0008551,91181.0,91180.0,0.31193555]
[1731978063618,0.0008551,91181.0,91180.0,0.41193555]
[1731978064070,0.0008551,91181.0,91180.0,0.49243555]
[1731978064282,0.0008551,91181.0,91180.0,0.50452296]
[1731978064512,0.0008551,91181.0,91180.0,0.49462296]
[1731978065180,0.0017102,91199.0,91198.0,0.043]
[1731978065384,0.0017102,91199.0,91198.0,0.22871355]
[1731978065596,0.0017102,91199.0,91180.0,0.1287]
[1731978065806,0.109652,91197.0,91180.0,0.02]
[1731978066014,0.0017102,91199.0,91182.0,0.219341]
[1731978066306,0.00361123,91196.0,91186.0,0.01]
[1731978066539,0.0017102,91199.0,91197.0,0.109652]
[1731978066540,0.00376463,91198.0,91197.0,0.109652]
[1731978066749,0.0017102,91199.0,91194.0,0.109655]
[1731978066961,0.0017102,91199.0,91187.0,0.11906255]
[1731978067190,0.0017102,91199.0,91190.0,0.219322]
[1731978067405,0.0017102,91199.0,91195.0,0.109655]
[1731978067657,0.0017102,91199.0,91183.0,0.1]
[1731978067658,0.0017102,91199.0,91178.0,0.02]
[1731978067863,0.109651,91198.0,91182.0,0.10967]
[1731978068072,0.219305,91197.0,91167.0,0.01]
[1731978068283,0.219305,91197.0,91179.0,0.219348]
[1731978068507,0.27413268,91192.0,91180.0,0.21999701]
[1731978068729,0.16447368,91192.0,91182.0,0.10967]
[1731978068932,0.109661,91190.0,91182.0,0.10967]
[1731978069352,0.27413168,91192.0,91179.0,0.219347]
[1731978069567,0.16447368,91192.0,91180.0,0.00122671]
[1731978069772,0.16447368,91192.0,91181.0,0.219343]
[1731978070182,0.27413268,91192.0,91184.0,0.109667]
[1731978070401,0.02036292,91195.0,91177.0,0.01]
[1731978070612,0.000854,91196.0,91186.0,0.219331]
[1731978070853,0.000854,91196.0,91185.0,0.10906255]
[1731978070854,0.16447368,91192.0,91185.0,0.10906255]
[1731978071076,0.000854,91196.0,91185.0,0.10906255]
[1731978071335,0.16447368,91192.0,91176.0,0.01]
[1731978071600,0.02036292,91191.0,91177.0,0.10906255]
[1731978071803,0.02036292,91190.0,91169.0,0.22108]
[1731978072048,0.109664,91188.0,91175.0,0.219356]
[1731978072277,0.02036292,91187.0,91184.0,0.109668]
[1731978072500,0.00380829,91187.0,91186.0,0.109665]
[1731978072729,0.13386266,91187.0,91180.0,0.109672]
[1731978072941,0.13386266,91187.0,91183.0,0.109669]
[1731978072942,0.02038937,91186.0,91183.0,0.109669]
[1731978073164,0.02038937,91185.0,91183.0,0.109669]
[1731978073346,0.02038937,91184.0,91179.0,0.219348]
[1731978073582,0.16447368,91192.0,91177.0,0.219353]
[1731978073796,0.109662,91189.0,91179.0,0.219348]
[1731978074071,0.02420537,91191.0,91185.0,0.219333]
[1731978074293,0.02420158,91188.0,91187.0,0.109664]
[1731978074520,0.02039661,91188.0,91187.0,0.109664]
[1731978075203,0.02039661,91195.0,91181.0,0.219343]
[1731978075453,0.000854,91196.0,91181.0,0.219343]
[1731978075454,0.02040689,91194.0,91185.0,0.109666]
[1731978075654,0.02040689,91193.0,91181.0,0.10906255]
[1731978075883,0.00375911,91194.0,91192.0,0.109658]
[1731978076113,0.02042093,91193.0,91190.0,0.10966]
[1731978076319,0.03263457,91192.0,91190.0,0.10966]
[1731978076546,0.03263457,91192.0,91181.0,0.10906255]
[1731978076547,0.03263457,91192.0,91191.0,0.109659]
[1731978076779,0.0204346,91192.0,91187.0,0.219327]
[1731978077005,0.03263457,91195.0,91182.0,0.32840355]
[1731978077006,0.03263457,91194.0,91182.0,0.32840355]
[1731978077229,0.000854,91196.0,91173.0,0.16447368]
[1731978077230,0.05306871,91193.0,91184.0,0.219336]
[1731978077477,0.000854,91196.0,91194.0,0.109655]
[1731978077723,0.000854,91196.0,91190.0,0.21932]
[1731978077963,0.000854,91196.0,91183.0,0.01713495]
[1731978077964,0.02045036,91195.0,91183.0,0.01713495]
[1731978078168,0.219319,91191.0,91183.0,0.01713495]
[1731978078407,0.109668,91184.0,91183.0,0.01713495]
[1731978078611,0.13011832,91184.0,91183.0,0.01713495]
[1731978078821,0.16283883,91184.0,91183.0,0.01713495]
[1731978079042,0.109682,91173.0,91167.0,0.109688]
[1731978079288,0.219339,91183.0,91163.0,0.38385968]
[1731978079289,0.16285383,91172.0,91166.0,0.109689]
[1731978079500,0.16285383,91172.0,91163.0,0.38385968]
[1731978079501,0.05317083,91171.0,91163.0,0.38385968]
[1731978079716,0.05317083,91170.0,91168.0,0.109687]
[1731978079939,0.05317083,91170.0,91163.0,0.38385968]
[1731978079940,0.05317083,91170.0,91169.0,0.111394]
[1731978080160,0.05317083,91170.0,91169.0,0.001708]
[1731978081245,0.05700681,91170.0,91169.0,0.001708]
[1731978081979,0.05700681,91170.0,91169.0,0.111394]
[1731978082625,0.0532855,91170.0,91169.0,0.111394]
[1731978083069,0.0532855,91170.0,91169.0,0.11358759]
[1731978083298,0.0532855,91170.0,91169.0,0.22045655]
[1731978083508,0.02049442,91170.0,91169.0,0.22045655]
[1731978084143,0.02049442,91170.0,91169.0,0.27845655]
[1731978084393,0.02049442,91170.0,91169.0,0.38845655]
[1731978084789,0.16447368,91181.0,91180.0,0.109673]
[1731978085251,0.16447368,91181.0,91180.0,0.21873555]
[1731978085252,0.05702569,91181.0,91180.0,0.21873555]
[1731978085717,0.05328539,91181.0,91180.0,0.21873555]
[1731978086132,0.05328539,91181.0,91180.0,0.109673]
[1731978087057,0.05328539,91181.0,91180.0,0.21873555]
[1731978087316,0.05328539,91181.0,91180.0,0.35374932]
[1731978087522,0.03278561,91194.0,91193.0,0.109657]
[1731978087740,0.05327647,91194.0,91193.0,0.109657]
[1731978087969,0.0490328,91194.0,91193.0,0.109657]
[1731978088161,0.04527647,91194.0,91193.0,0.109657]
[1731978089081,0.000854,91195.0,91194.0,0.109656]
[1731978089300,0.0213445,91195.0,91194.0,0.109656]
[1731978090205,0.0213445,91195.0,91183.0,0.01]